[Event "*** Titled Tuesday Blitz"]
[Site "Chess.com"]
[Date "2020.11.24"]
[Round "2"]
[White "26andrej26"]
[Black "GM_dmitrij"]
[Result "0-1"]
[WhiteElo "2529"]
[BlackElo "2884"]
[TimeControl "180+1"]
[EndTime "10:37:17 PST"]
[Termination "GM_dmitrij won by checkmate"]

1. e4 {[%clk 0:03:00.9]} 1... c6 {[%clk 0:02:57.4]} 2. Nc3 {[%clk 0:03:00.9]}
2... d5 {[%clk 0:02:57.2]} 3. d4 {[%clk 0:03:01.8]} 3... dxe4 {[%clk 0:02:56.9]}
4. Nxe4 {[%clk 0:03:02.7]} 4... Nf6 {[%clk 0:02:57.6]} 5. Nxf6+ {[%clk
0:03:03.3]} 5... exf6 {[%clk 0:02:58.5]} 6. c3 {[%clk 0:03:04.1]} 6... Bd6
{[%clk 0:02:57.4]} 7. Bd3 {[%clk 0:03:05]} 7... O-O {[%clk 0:02:56.4]} 8. Qc2
{[%clk 0:03:05.9]} 8... h5 {[%clk 0:02:55.5]} 9. Be3 {[%clk 0:03:05.7]} 9... Re8
{[%clk 0:02:53.8]} 10. h3 {[%clk 0:03:06]} 10... Be6 {[%clk 0:02:42.1]} 11. Ne2
{[%clk 0:03:05.3]} 11... Nd7 {[%clk 0:02:41]} 12. O-O {[%clk 0:03:03.9]} 12...
b5 {[%clk 0:02:34.6]} 13. Nf4 {[%clk 0:03:00.6]} 13... Nf8 {[%clk 0:02:27.6]}
14. Nxh5 {[%clk 0:02:55.8]} 14... Bc7 {[%clk 0:02:24.5]} 15. Rfe1 {[%clk
0:02:19.4]} 15... Bd5 {[%clk 0:02:23.9]} 16. Bf4 {[%clk 0:01:56.5]} 16... Bb6
{[%clk 0:02:19.7]} 17. Ng3 {[%clk 0:01:50]} 17... Ne6 {[%clk 0:02:17.4]} 18. Bd2
{[%clk 0:01:48.2]} 18... Bc7 {[%clk 0:02:15.5]} 19. Be4 {[%clk 0:01:41.9]} 19...
c5 {[%clk 0:02:03.2]} 20. Bxd5 {[%clk 0:01:10.4]} 20... Qxd5 {[%clk 0:02:04.1]}
21. dxc5 {[%clk 0:00:55.3]} 21... Nxc5 {[%clk 0:02:05]} 22. Be3 {[%clk
0:00:46.9]} 22... Bxg3 {[%clk 0:01:48.1]} 23. Rad1 {[%clk 0:00:41.6]} 23... Qxa2
{[%clk 0:01:32.8]} 24. Bxc5 {[%clk 0:00:38.7]} 24... Be5 {[%clk 0:01:25.5]} 25.
Bd4 {[%clk 0:00:32.1]} 25... Bxd4 {[%clk 0:01:03]} 26. Rxe8+ {[%clk 0:00:33]}
26... Rxe8 {[%clk 0:01:03.3]} 27. Rxd4 {[%clk 0:00:33.3]} 27... a5 {[%clk
0:01:03.7]} 28. Rh4 {[%clk 0:00:21.1]} 28... g6 {[%clk 0:01:02.9]} 29. Rg4
{[%clk 0:00:21.7]} 29... Kg7 {[%clk 0:01:02.7]} 30. h4 {[%clk 0:00:19.1]} 30...
Qd5 {[%clk 0:01:01.9]} 31. Rd4 {[%clk 0:00:15.3]} 31... Re1+ {[%clk 0:00:56.7]}
32. Kh2 {[%clk 0:00:15.5]} 32... Qe5+ {[%clk 0:00:57.6]} 33. g3 {[%clk
0:00:14.8]} 33... Re2 {[%clk 0:00:57.8]} 34. Rd2 {[%clk 0:00:12.3]} 34... Re4
{[%clk 0:00:58.4]} 35. Qd3 {[%clk 0:00:11.6]} 35... Rxh4+ {[%clk 0:00:58.4]} 36.
Kg2 {[%clk 0:00:11.7]} 36... Re4 {[%clk 0:00:49.3]} 37. Qd6 {[%clk 0:00:10.6]}
37... Qxd6 {[%clk 0:00:35.5]} 38. Rxd6 {[%clk 0:00:11.5]} 38... Re2 {[%clk
0:00:36.3]} 39. Ra6 {[%clk 0:00:10.9]} 39... a4 {[%clk 0:00:35.1]} 40. c4 {[%clk
0:00:10.7]} 40... bxc4 {[%clk 0:00:26.1]} 41. Rxa4 {[%clk 0:00:10.5]} 41... Rc2
{[%clk 0:00:27]} 42. Rb4 {[%clk 0:00:10.1]} 42... f5 {[%clk 0:00:22.3]} 43. b3
{[%clk 0:00:10.5]} 43... Rb2 {[%clk 0:00:20.3]} 44. Rxc4 {[%clk 0:00:10.5]}
44... Rxb3 {[%clk 0:00:21.2]} 45. Rc6 {[%clk 0:00:10.8]} 45... Rd3 {[%clk
0:00:20.7]} 46. Ra6 {[%clk 0:00:10.7]} 46... Rd7 {[%clk 0:00:21.1]} 47. Rb6
{[%clk 0:00:11.1]} 47... Re7 {[%clk 0:00:21.5]} 48. Ra6 {[%clk 0:00:11.5]} 48...
Re6 {[%clk 0:00:22.4]} 49. Ra7 {[%clk 0:00:12.1]} 49... Kf6 {[%clk 0:00:23.3]}
50. Kf3 {[%clk 0:00:12.3]} 50... Rd6 {[%clk 0:00:23.1]} 51. Rb7 {[%clk
0:00:12.5]} 51... Ke6 {[%clk 0:00:23.6]} 52. Ra7 {[%clk 0:00:12.7]} 52... Rd7
{[%clk 0:00:24]} 53. Ra6+ {[%clk 0:00:13.3]} 53... Ke5 {[%clk 0:00:23.9]} 54.
Ra5+ {[%clk 0:00:13.8]} 54... Kf6 {[%clk 0:00:23.8]} 55. Ra6+ {[%clk 0:00:14.2]}
55... Kg5 {[%clk 0:00:24.3]} 56. Rb6 {[%clk 0:00:14.7]} 56... Rd3+ {[%clk
0:00:23.9]} 57. Ke2 {[%clk 0:00:14.2]} 57... Rd5 {[%clk 0:00:24.1]} 58. Rb7
{[%clk 0:00:14.4]} 58... Kf6 {[%clk 0:00:23]} 59. Ra7 {[%clk 0:00:14.5]} 59...
Rd4 {[%clk 0:00:21.2]} 60. Ke3 {[%clk 0:00:14.6]} 60... Rb4 {[%clk 0:00:20.6]}
61. Ra6+ {[%clk 0:00:14.7]} 61... Kg5 {[%clk 0:00:20.6]} 62. Ra7 {[%clk
0:00:15.3]} 62... Kf6 {[%clk 0:00:20.4]} 63. Ra6+ {[%clk 0:00:15.1]} 63... Kg7
{[%clk 0:00:21]} 64. Ra7 {[%clk 0:00:15.6]} 64... Re4+ {[%clk 0:00:21.1]} 65.
Kf3 {[%clk 0:00:16]} 65... Kf6 {[%clk 0:00:21]} 66. Ra6+ {[%clk 0:00:16.2]}
66... Re6 {[%clk 0:00:21.3]} 67. Ra7 {[%clk 0:00:17.1]} 67... Re7 {[%clk
0:00:21.6]} 68. Ra6+ {[%clk 0:00:17.3]} 68... Kg5 {[%clk 0:00:22.2]} 69. Rb6
{[%clk 0:00:17.3]} 69... Rc7 {[%clk 0:00:22.2]} 70. Ra6 {[%clk 0:00:17.6]} 70...
Rb7 {[%clk 0:00:17.3]} 71. Rc6 {[%clk 0:00:17.3]} 71... f6 {[%clk 0:00:17.5]}
72. Ra6 {[%clk 0:00:17.3]} 72... Rb4 {[%clk 0:00:16]} 73. Rc6 {[%clk 0:00:16.4]}
73... f4 {[%clk 0:00:14.7]} 74. gxf4+ {[%clk 0:00:16.1]} 74... Rxf4+ {[%clk
0:00:15.6]} 75. Kg3 {[%clk 0:00:17]} 75... Rb4 {[%clk 0:00:13.8]} 76. Rc5+
{[%clk 0:00:17]} 76... f5 {[%clk 0:00:13.7]} 77. Ra5 {[%clk 0:00:17.2]} 77...
Rb3+ {[%clk 0:00:13.5]} 78. f3 {[%clk 0:00:16.8]} 78... Rb1 {[%clk 0:00:13]} 79.
Rc5 {[%clk 0:00:16.6]} 79... Rg1+ {[%clk 0:00:12.8]} 80. Kf2 {[%clk 0:00:16.9]}
80... Ra1 {[%clk 0:00:13.7]} 81. Kg3 {[%clk 0:00:17.2]} 81... Ra6 {[%clk
0:00:13.1]} 82. Rb5 {[%clk 0:00:17.1]} 82... Kf6 {[%clk 0:00:13.4]} 83. Rc5
{[%clk 0:00:16.2]} 83... Rb6 {[%clk 0:00:13.8]} 84. Ra5 {[%clk 0:00:16.4]} 84...
Rc6 {[%clk 0:00:14.1]} 85. Rb5 {[%clk 0:00:16.8]} 85... Ra6 {[%clk 0:00:14.5]}
86. Kf4 {[%clk 0:00:16.7]} 86... Ra4+ {[%clk 0:00:12.9]} 87. Kg3 {[%clk
0:00:17]} 87... Kg5 {[%clk 0:00:13.8]} 88. Rc5 {[%clk 0:00:17.1]} 88... Ra2
{[%clk 0:00:13.5]} 89. Rb5 {[%clk 0:00:17.2]} 89... Kh5 {[%clk 0:00:13.5]} 90.
Rc5 {[%clk 0:00:17.3]} 90... Ra6 {[%clk 0:00:13.3]} 91. Rb5 {[%clk 0:00:17.6]}
91... Rc6 {[%clk 0:00:13.4]} 92. Kf4 {[%clk 0:00:17.6]} 92... Rc4+ {[%clk
0:00:12.9]} 93. Kg3 {[%clk 0:00:17.8]} 93... Kg5 {[%clk 0:00:13.2]} 94. Ra5
{[%clk 0:00:18.1]} 94... Rd4 {[%clk 0:00:13.4]} 95. Rb5 {[%clk 0:00:18.5]} 95...
Rd6 {[%clk 0:00:13.5]} 96. Ra5 {[%clk 0:00:19]} 96... Re6 {[%clk 0:00:14]} 97.
Rb5 {[%clk 0:00:19.5]} 97... Kf6 {[%clk 0:00:14.1]} 98. Kf4 {[%clk 0:00:18.3]}
98... Re1 {[%clk 0:00:12.5]} 99. Rb6+ {[%clk 0:00:18.1]} 99... Kg7 {[%clk
0:00:12.8]} 100. Kg5 {[%clk 0:00:17.6]} 100... Rg1+ {[%clk 0:00:12.2]} 101. Kf4
{[%clk 0:00:18.1]} 101... Kh6 {[%clk 0:00:12.7]} 102. Ra6 {[%clk 0:00:18.1]}
102... Rg2 {[%clk 0:00:12.6]} 103. Rb6 {[%clk 0:00:18.4]} 103... Kh5 {[%clk
0:00:12.5]} 104. Ra6 {[%clk 0:00:18.5]} 104... Rg1 {[%clk 0:00:12.6]} 105. Rb6
{[%clk 0:00:19]} 105... Rc1 {[%clk 0:00:07.9]} 106. Ra6 {[%clk 0:00:18.1]}
106... Rc5 {[%clk 0:00:06.5]} 107. Rb6 {[%clk 0:00:17.5]} 107... g5+ {[%clk
0:00:05.9]} 108. Kg3 {[%clk 0:00:17.7]} 108... Rc2 {[%clk 0:00:06.8]} 109. Rb5
{[%clk 0:00:13.5]} 109... Kg6 {[%clk 0:00:04.9]} 110. Rb6+ {[%clk 0:00:13.3]}
110... Kh7 {[%clk 0:00:02.8]} 111. Rb5 {[%clk 0:00:14.2]} 111... Kg6 {[%clk
0:00:03]} 112. Rb6+ {[%clk 0:00:14.7]} 112... Kh5 {[%clk 0:00:03.9]} 113. Rb5
{[%clk 0:00:15.6]} 113... f4+ {[%clk 0:00:04.1]} 114. Kh3 {[%clk 0:00:16.1]}
114... Rc3 {[%clk 0:00:04.2]} 115. Kg2 {[%clk 0:00:15.9]} 115... Kh4 {[%clk
0:00:05.1]} 116. Rb2 {[%clk 0:00:14.8]} 116... Rd3 {[%clk 0:00:05.4]} 117. Ra2
{[%clk 0:00:15.2]} 117... Re3 {[%clk 0:00:05.8]} 118. Rb2 {[%clk 0:00:15.3]}
118... Ra3 {[%clk 0:00:06.2]} 119. Rc2 {[%clk 0:00:15.5]} 119... Rb3 {[%clk
0:00:06.1]} 120. Rd2 {[%clk 0:00:15.9]} 120... Rc3 {[%clk 0:00:06.4]} 121. Rb2
{[%clk 0:00:16.3]} 121... g4 {[%clk 0:00:06.1]} 122. fxg4 {[%clk 0:00:16.1]}
122... Kxg4 {[%clk 0:00:07]} 123. Ra2 {[%clk 0:00:16.2]} 123... Rg3+ {[%clk
0:00:07.1]} 124. Kf2 {[%clk 0:00:14.8]} 124... Rh3 {[%clk 0:00:08]} 125. Kg2
{[%clk 0:00:13.7]} 125... f3+ {[%clk 0:00:07.3]} 126. Kg1 {[%clk 0:00:13.7]}
126... Kg3 {[%clk 0:00:07.6]} 127. Ra3 {[%clk 0:00:08.4]} 127... Rh5 {[%clk
0:00:07.1]} 128. Rc3 {[%clk 0:00:06.9]} 128... Rd5 {[%clk 0:00:05.7]} 129. Rc1
{[%clk 0:00:06.9]} 129... Rd2 {[%clk 0:00:05.8]} 130. Rc3 {[%clk 0:00:05.3]}
130... Rd1# {[%clk 0:00:05.7]} 0-1

[Event "*** Titled Tuesday Blitz"]
[Site "Chess.com"]
[Date "2020.11.24"]
[Round "3"]
[White "Bulldog167"]
[Black "Aradej"]
[Result "1-0"]
[WhiteElo "2639"]
[BlackElo "2422"]
[TimeControl "180+1"]
[EndTime "10:39:16 PST"]
[Termination "Bulldog167 won by resignation"]

1. d4 {[%clk 0:03:00.9]} 1... g6 {[%clk 0:02:59.9]} 2. e4 {[%clk 0:03:00.9]}
2... Bg7 {[%clk 0:03:00.5]} 3. c4 {[%clk 0:03:01.4]} 3... d6 {[%clk 0:03:00.9]}
4. Nc3 {[%clk 0:03:01.8]} 4... Nd7 {[%clk 0:03:01.1]} 5. Be3 {[%clk 0:03:01.4]}
5... e5 {[%clk 0:03:01.4]} 6. d5 {[%clk 0:03:01.3]} 6... Ne7 {[%clk 0:03:01.1]}
7. g4 {[%clk 0:02:59.5]} 7... h5 {[%clk 0:03:00.6]} 8. g5 {[%clk 0:02:57.1]}
8... f5 {[%clk 0:03:00.6]} 9. gxf6 {[%clk 0:02:48.9]} 9... Nxf6 {[%clk
0:03:00.7]} 10. h3 {[%clk 0:02:39.8]} 10... c6 {[%clk 0:02:53.1]} 11. Nf3 {[%clk
0:02:39.7]} 11... a6 {[%clk 0:02:51.2]} 12. Rg1 {[%clk 0:02:38]} 12... b5 {[%clk
0:02:50.6]} 13. dxc6 {[%clk 0:02:33.9]} 13... b4 {[%clk 0:02:50.3]} 14. Nd5
{[%clk 0:02:29.7]} 14... Nxe4 {[%clk 0:02:38.8]} 15. Bb6 {[%clk 0:02:23.5]} 1-0

[Event "*** Titled Tuesday Blitz"]
[Site "Chess.com"]
[Date "2020.11.24"]
[Round "3"]
[White "Godzillator"]
[Black "Leonid_Starozhilov"]
[Result "0-1"]
[WhiteElo "2393"]
[BlackElo "2665"]
[TimeControl "180+1"]
[EndTime "10:39:28 PST"]
[Termination "Leonid_Starozhilov won by resignation"]

1. d4 {[%clk 0:03:00.9]} 1... Nf6 {[%clk 0:02:59.5]} 2. c4 {[%clk 0:03:01.1]}
2... g6 {[%clk 0:02:59.8]} 3. Nc3 {[%clk 0:03:01.4]} 3... Bg7 {[%clk 0:03:00.2]}
4. e4 {[%clk 0:03:01.8]} 4... d6 {[%clk 0:03:00.7]} 5. Be2 {[%clk 0:03:02.4]}
5... O-O {[%clk 0:03:00.5]} 6. Bg5 {[%clk 0:03:03]} 6... Nc6 {[%clk 0:03:00.7]}
7. d5 {[%clk 0:03:02.6]} 7... Ne5 {[%clk 0:03:00.9]} 8. Nf3 {[%clk 0:03:02.9]}
8... Nxf3+ {[%clk 0:02:59.4]} 9. Bxf3 {[%clk 0:03:03.2]} 9... c6 {[%clk
0:02:58]} 10. Qd2 {[%clk 0:03:03]} 10... Bd7 {[%clk 0:02:57.7]} 11. O-O {[%clk
0:03:02.2]} 11... Rc8 {[%clk 0:02:57]} 12. Rfe1 {[%clk 0:03:01.8]} 12... cxd5
{[%clk 0:02:56.8]} 13. cxd5 {[%clk 0:03:01.7]} 13... b5 {[%clk 0:02:54.2]} 14.
a3 {[%clk 0:03:00.8]} 14... a5 {[%clk 0:02:47.4]} 15. h3 {[%clk 0:02:59.4]}
15... Qb6 {[%clk 0:02:40.3]} 16. Be3 {[%clk 0:02:57.6]} 16... Qb8 {[%clk
0:02:38.9]} 17. Bd4 {[%clk 0:02:57.3]} 17... Rc4 {[%clk 0:02:34.4]} 18. Be2
{[%clk 0:02:53.7]} 18... Nxe4 {[%clk 0:02:32.4]} 19. Qe3 {[%clk 0:02:43.2]}
19... Bxd4 {[%clk 0:02:16.8]} 20. Qxe4 {[%clk 0:02:42.1]} 20... Bxf2+ {[%clk
0:02:16.2]} 0-1

[Event "*** Titled Tuesday Blitz"]
[Site "Chess.com"]
[Date "2020.11.24"]
[Round "3"]
[White "Kouzari"]
[Black "gumimis"]
[Result "0-1"]
[WhiteElo "2541"]
[BlackElo "2286"]
[TimeControl "180+1"]
[EndTime "10:39:28 PST"]
[Termination "gumimis won by resignation"]

1. e4 {[%clk 0:03:00.9]} 1... c5 {[%clk 0:02:57.4]} 2. Nf3 {[%clk 0:03:00.9]}
2... d6 {[%clk 0:02:57.5]} 3. d4 {[%clk 0:03:01]} 3... cxd4 {[%clk 0:02:57.8]}
4. Nxd4 {[%clk 0:03:01.9]} 4... Nf6 {[%clk 0:02:57.9]} 5. Nc3 {[%clk 0:03:02.1]}
5... a6 {[%clk 0:02:57.5]} 6. Be3 {[%clk 0:03:02.1]} 6... e5 {[%clk 0:02:57.6]}
7. Nb3 {[%clk 0:03:02.1]} 7... Be6 {[%clk 0:02:56.7]} 8. f3 {[%clk 0:03:02.2]}
8... Be7 {[%clk 0:02:57]} 9. Qd2 {[%clk 0:03:02.7]} 9... O-O {[%clk 0:02:54.6]}
10. O-O-O {[%clk 0:03:03.1]} 10... a5 {[%clk 0:02:55]} 11. Kb1 {[%clk
0:03:00.3]} 11... a4 {[%clk 0:02:51.4]} 12. Nc1 {[%clk 0:02:52.8]} 12... a3
{[%clk 0:02:51.3]} 13. b3 {[%clk 0:02:53.1]} 13... Ra5 {[%clk 0:02:48.3]} 14. g4
{[%clk 0:02:52.9]} 14... d5 {[%clk 0:02:48.1]} 15. exd5 {[%clk 0:02:53.3]} 15...
Nxd5 {[%clk 0:02:47.2]} 16. Be2 {[%clk 0:02:48.1]} 16... Bb4 {[%clk 0:02:35.8]}
17. Bb6 {[%clk 0:02:36.5]} 17... Qxb6 {[%clk 0:02:26.4]} 0-1

[Event "*** Titled Tuesday Blitz"]
[Site "Chess.com"]
[Date "2020.11.24"]
[Round "3"]
[White "Supernotar"]
[Black "ShapkinAnatoliy"]
[Result "1/2-1/2"]
[WhiteElo "2863"]
[BlackElo "2654"]
[TimeControl "180+1"]
[EndTime "10:39:47 PST"]
[Termination "Game drawn by agreement"]

1. d4 {[%clk 0:03:00.9]} 1... Nf6 {[%clk 0:02:59.7]} 2. c4 {[%clk 0:03:00.7]}
2... g6 {[%clk 0:02:59.9]} 3. Nc3 {[%clk 0:02:59.3]} 3... d5 {[%clk 0:03:00.4]}
4. cxd5 {[%clk 0:02:59.1]} 4... Nxd5 {[%clk 0:03:01.3]} 5. e4 {[%clk 0:02:59.4]}
5... Nxc3 {[%clk 0:03:01.7]} 6. bxc3 {[%clk 0:02:59.7]} 6... Bg7 {[%clk
0:03:02.3]} 7. Nf3 {[%clk 0:02:59.8]} 7... c5 {[%clk 0:03:02.2]} 8. Be3 {[%clk
0:02:59.9]} 8... Qa5 {[%clk 0:03:01.9]} 9. Qd2 {[%clk 0:02:59.7]} 9... O-O
{[%clk 0:03:02.3]} 10. Rc1 {[%clk 0:02:59.3]} 10... Rd8 {[%clk 0:03:02.5]} 11.
d5 {[%clk 0:02:57.6]} 11... e6 {[%clk 0:03:02.8]} 12. Bg5 {[%clk 0:02:57.3]}
12... f6 {[%clk 0:03:02.5]} 13. Be3 {[%clk 0:02:56.3]} 13... exd5 {[%clk
0:03:01.6]} 14. exd5 {[%clk 0:02:56.1]} 14... Nc6 {[%clk 0:03:02.1]} 15. Bd3
{[%clk 0:02:56]} 15... c4 {[%clk 0:03:01.8]} 16. Bxc4 {[%clk 0:02:48.3]} 16...
Be6 {[%clk 0:03:01.7]} 17. O-O {[%clk 0:02:41.8]} 17... Bxd5 {[%clk 0:02:59.5]}
18. Bxd5+ {[%clk 0:02:41.6]} 18... Qxd5 {[%clk 0:02:58.2]} 19. Qxd5+ {[%clk
0:02:34.8]} 19... Rxd5 {[%clk 0:02:57.5]} 20. Nd4 {[%clk 0:02:29.3]} 20... Rc8
{[%clk 0:02:43.4]} 21. Nxc6 {[%clk 0:02:16.4]} 21... Rxc6 {[%clk 0:02:44.3]} 22.
Bxa7 {[%clk 0:02:16.1]} 1/2-1/2

[Event "*** Titled Tuesday Blitz"]
[Site "Chess.com"]
[Date "2020.11.24"]
[Round "3"]
[White "Infernal_XaM"]
[Black "LikeWater"]
[Result "1-0"]
[WhiteElo "2834"]
[BlackElo "2610"]
[TimeControl "180+1"]
[EndTime "10:39:49 PST"]
[Termination "Infernal_XaM won by resignation"]

1. d4 {[%clk 0:03:00.9]} 1... Nf6 {[%clk 0:02:59.4]} 2. c4 {[%clk 0:03:01.8]}
2... c5 {[%clk 0:02:59.5]} 3. d5 {[%clk 0:03:01.5]} 3... g6 {[%clk 0:02:59.8]}
4. Nc3 {[%clk 0:03:01.2]} 4... Bg7 {[%clk 0:03:00.3]} 5. e4 {[%clk 0:03:01.6]}
5... O-O {[%clk 0:03:01.2]} 6. Bd3 {[%clk 0:03:00.3]} 6... e6 {[%clk 0:03:01]}
7. Nge2 {[%clk 0:02:46.2]} 7... d6 {[%clk 0:03:00.2]} 8. O-O {[%clk 0:02:45.5]}
8... Re8 {[%clk 0:03:00.7]} 9. Ng3 {[%clk 0:02:43.8]} 9... exd5 {[%clk
0:02:53.7]} 10. exd5 {[%clk 0:02:43.3]} 10... Ng4 {[%clk 0:02:54.3]} 11. h3
{[%clk 0:02:40.8]} 11... Ne5 {[%clk 0:02:51.3]} 12. Be2 {[%clk 0:02:40.5]} 12...
Qh4 {[%clk 0:02:52]} 13. Nge4 {[%clk 0:02:36.3]} 13... Nxc4 {[%clk 0:02:15.1]}
14. Bg5 {[%clk 0:02:32.1]} 14... Rxe4 {[%clk 0:01:57.3]} 15. Bxh4 {[%clk
0:02:32]} 15... Rxh4 {[%clk 0:01:58.2]} 16. Bxc4 {[%clk 0:02:32.2]} 16... Rxc4
{[%clk 0:01:57]} 17. Qe2 {[%clk 0:02:32.4]} 1-0

[Event "*** Titled Tuesday Blitz"]
[Site "Chess.com"]
[Date "2020.11.24"]
[Round "3"]
[White "SameerMujumdar"]
[Black "ChessicallyInclined"]
[Result "0-1"]
[WhiteElo "2297"]
[BlackElo "2519"]
[TimeControl "180+1"]
[EndTime "10:40:17 PST"]
[Termination "ChessicallyInclined won by resignation"]

1. e4 {[%clk 0:03:00.9]} 1... d6 {[%clk 0:03:00]} 2. d4 {[%clk 0:02:58.3]} 2...
Nf6 {[%clk 0:03:00.4]} 3. Nc3 {[%clk 0:02:57.2]} 3... g6 {[%clk 0:03:00.8]} 4.
Be3 {[%clk 0:02:54.2]} 4... c6 {[%clk 0:03:00.6]} 5. Qd2 {[%clk 0:02:53.6]} 5...
Nbd7 {[%clk 0:03:00.5]} 6. O-O-O {[%clk 0:02:53.3]} 6... Qa5 {[%clk 0:02:58.2]}
7. Kb1 {[%clk 0:02:51.7]} 7... b5 {[%clk 0:02:57.6]} 8. f3 {[%clk 0:02:45.8]}
8... b4 {[%clk 0:02:56.6]} 9. Nce2 {[%clk 0:02:45.2]} 9... Nb6 {[%clk
0:02:54.5]} 10. a3 {[%clk 0:02:26.9]} 10... Nc4 {[%clk 0:02:51.1]} 11. Qc1
{[%clk 0:02:26.1]} 11... bxa3 {[%clk 0:02:25]} 12. b3 {[%clk 0:02:22.6]} 12...
Nxe3 {[%clk 0:02:24.6]} 13. Qxe3 {[%clk 0:02:10.9]} 13... Bg7 {[%clk 0:02:22]}
14. Nc1 {[%clk 0:02:06.7]} 14... O-O {[%clk 0:02:15.4]} 15. Bd3 {[%clk
0:01:53.9]} 15... Qc3 {[%clk 0:02:08.6]} 0-1

[Event "*** Titled Tuesday Blitz"]
[Site "Chess.com"]
[Date "2020.11.24"]
[Round "3"]
[White "BilodeauA"]
[Black "SamuelGhimpu2003"]
[Result "0-1"]
[WhiteElo "2831"]
[BlackElo "2632"]
[TimeControl "180+1"]
[EndTime "10:40:21 PST"]
[Termination "SamuelGhimpu2003 won by resignation"]

1. d4 {[%clk 0:03:00.9]} 1... Nf6 {[%clk 0:03:00.5]} 2. Nc3 {[%clk 0:02:59.6]}
2... e6 {[%clk 0:03:00.3]} 3. e4 {[%clk 0:02:59.4]} 3... d5 {[%clk 0:03:00.4]}
4. e5 {[%clk 0:02:59.8]} 4... Nfd7 {[%clk 0:03:00.8]} 5. f4 {[%clk 0:03:00.6]}
5... c5 {[%clk 0:03:01.6]} 6. Nf3 {[%clk 0:03:01.3]} 6... Nc6 {[%clk 0:03:02.3]}
7. Be3 {[%clk 0:03:02.1]} 7... Be7 {[%clk 0:03:03]} 8. Qd2 {[%clk 0:03:02.3]}
8... O-O {[%clk 0:03:03.9]} 9. dxc5 {[%clk 0:03:01.8]} 9... Qa5 {[%clk
0:03:03.7]} 10. O-O-O {[%clk 0:02:58.8]} 10... b6 {[%clk 0:03:03.3]} 11. cxb6
{[%clk 0:02:44.9]} 11... axb6 {[%clk 0:03:04.2]} 12. Nd4 {[%clk 0:02:42.3]}
12... Bb7 {[%clk 0:03:03.5]} 13. h4 {[%clk 0:02:33.7]} 13... Rfc8 {[%clk
0:02:50.1]} 14. Rh3 {[%clk 0:02:31.1]} 14... Nb4 {[%clk 0:02:39.1]} 15. Nb3
{[%clk 0:02:05.7]} 15... Nxa2+ {[%clk 0:02:34.6]} 16. Nxa2 {[%clk 0:02:04.8]}
16... Qxa2 {[%clk 0:02:35.5]} 17. Qd3 {[%clk 0:01:59.9]} 17... Ba6 {[%clk
0:02:25.6]} 18. Qd2 {[%clk 0:01:54]} 18... Bxf1 {[%clk 0:02:25.1]} 19. Rxf1
{[%clk 0:01:54]} 19... Qxb3 {[%clk 0:02:25.2]} 20. Kd1 {[%clk 0:01:48.1]} 20...
Ra1+ {[%clk 0:02:20.8]} 0-1

[Event "*** Titled Tuesday Blitz"]
[Site "Chess.com"]
[Date "2020.11.24"]
[Round "3"]
[White "Skat2704"]
[Black "picturesquecheck"]
[Result "1-0"]
[WhiteElo "2390"]
[BlackElo "2118"]
[TimeControl "180+1"]
[EndTime "10:40:40 PST"]
[Termination "Skat2704 won by checkmate"]

1. d4 {[%clk 0:03:00.5]} 1... Nf6 {[%clk 0:02:58.3]} 2. c4 {[%clk 0:03:00.2]}
2... e6 {[%clk 0:02:58]} 3. g3 {[%clk 0:03:00.6]} 3... d5 {[%clk 0:02:57.8]} 4.
Nf3 {[%clk 0:03:00.3]} 4... Bb4+ {[%clk 0:02:54.9]} 5. Bd2 {[%clk 0:03:00]} 5...
Be7 {[%clk 0:02:54.2]} 6. Bg2 {[%clk 0:03:00]} 6... O-O {[%clk 0:02:54]} 7. O-O
{[%clk 0:03:00.1]} 7... c6 {[%clk 0:02:53.3]} 8. Qc2 {[%clk 0:02:59.4]} 8... b6
{[%clk 0:02:53.2]} 9. Bf4 {[%clk 0:02:59.7]} 9... Bb7 {[%clk 0:02:52.9]} 10.
Nbd2 {[%clk 0:03:00.3]} 10... Nbd7 {[%clk 0:02:53]} 11. e4 {[%clk 0:02:59.7]}
11... dxe4 {[%clk 0:02:51.2]} 12. Nxe4 {[%clk 0:02:59.5]} 12... Nxe4 {[%clk
0:02:51.4]} 13. Qxe4 {[%clk 0:02:59]} 13... Nf6 {[%clk 0:02:51.8]} 14. Qe2
{[%clk 0:02:55.5]} 14... Rc8 {[%clk 0:02:51.2]} 15. Rfd1 {[%clk 0:02:46.8]}
15... Qe8 {[%clk 0:02:47.7]} 16. Ne5 {[%clk 0:02:44.6]} 16... Ba8 {[%clk
0:02:47.3]} 17. Rac1 {[%clk 0:02:39.1]} 17... Nd7 {[%clk 0:02:41.5]} 18. c5
{[%clk 0:02:31.4]} 18... Nxe5 {[%clk 0:02:39.2]} 19. Bxe5 {[%clk 0:02:28.8]}
19... Bb7 {[%clk 0:02:38.4]} 20. b4 {[%clk 0:02:26.6]} 20... h6 {[%clk
0:02:31.3]} 21. Qg4 {[%clk 0:02:20.5]} 21... g6 {[%clk 0:02:20.3]} 22. h4 {[%clk
0:02:10.5]} 22... h5 {[%clk 0:02:19.3]} 23. Qe2 {[%clk 0:02:04.9]} 23... Qd7
{[%clk 0:02:16.4]} 24. Qe3 {[%clk 0:02:00.4]} 24... Rfd8 {[%clk 0:02:13.9]} 25.
Qh6 {[%clk 0:01:56]} 25... Bf8 {[%clk 0:02:12.1]} 26. Qh8# {[%clk 0:01:55]} 1-0

[Event "*** Titled Tuesday Blitz"]
[Site "Chess.com"]
[Date "2020.11.24"]
[Round "3"]
[White "nicolevalladar"]
[Black "Kretov_Evgenij"]
[Result "1/2-1/2"]
[WhiteElo "1586"]
[BlackElo "2448"]
[TimeControl "180+1"]
[EndTime "10:41:04 PST"]
[Termination "Game drawn by repetition"]

1. e4 {[%clk 0:03:00.9]} 1... c5 {[%clk 0:03:00.1]} 2. Nc3 {[%clk 0:03:00.5]}
2... Nc6 {[%clk 0:03:00.4]} 3. d3 {[%clk 0:02:59.9]} 3... g6 {[%clk 0:03:00.1]}
4. g3 {[%clk 0:02:59.6]} 4... Bg7 {[%clk 0:03:00]} 5. Bg2 {[%clk 0:02:59.8]}
5... d6 {[%clk 0:03:00.4]} 6. Be3 {[%clk 0:02:59.3]} 6... e5 {[%clk 0:03:00.7]}
7. Qd2 {[%clk 0:02:58.7]} 7... Nge7 {[%clk 0:03:00.6]} 8. Bh6 {[%clk 0:02:57.3]}
8... O-O {[%clk 0:03:00.4]} 9. h4 {[%clk 0:02:56.5]} 9... f6 {[%clk 0:02:59.4]}
10. h5 {[%clk 0:02:52.2]} 10... g5 {[%clk 0:02:58.8]} 11. Bxg7 {[%clk
0:02:46.9]} 11... Kxg7 {[%clk 0:02:58]} 12. Nf3 {[%clk 0:02:41.3]} 12... h6
{[%clk 0:02:57.4]} 13. O-O-O {[%clk 0:02:21.4]} 13... Be6 {[%clk 0:02:57.4]} 14.
Ng1 {[%clk 0:02:14.8]} 14... Rb8 {[%clk 0:02:56.5]} 15. f4 {[%clk 0:02:09.6]}
15... b5 {[%clk 0:02:56.5]} 16. fxg5 {[%clk 0:01:55.7]} 16... fxg5 {[%clk
0:02:55.8]} 17. Nh3 {[%clk 0:01:46.6]} 17... Nd4 {[%clk 0:02:48.6]} 18. Nxg5
{[%clk 0:01:42.6]} 18... hxg5 {[%clk 0:02:48.8]} 19. Qxg5+ {[%clk 0:01:41.8]}
19... Kh7 {[%clk 0:02:48.8]} 20. Rdf1 {[%clk 0:01:33.8]} 20... b4 {[%clk
0:02:43.6]} 21. Nd5 {[%clk 0:01:24.1]} 21... Nxd5 {[%clk 0:02:20.8]} 22. Qg6+
{[%clk 0:01:19.9]} 22... Kh8 {[%clk 0:02:21.1]} 23. Qh6+ {[%clk 0:01:17.5]}
23... Kg8 {[%clk 0:02:20.6]} 24. Qg6+ {[%clk 0:01:17.2]} 24... Kh8 {[%clk
0:02:20.9]} 25. Qh6+ {[%clk 0:01:17.1]} 25... Kg8 {[%clk 0:02:21.3]} 26. Qg6+
{[%clk 0:01:15.8]} 26... Kh8 {[%clk 0:02:21.6]} 1/2-1/2